[Event "XXVII RUS-chT Premier 2020"]
[Site "Sochi"]
[Date "2020.11.20"]
[Round "2.30"]
[White "Ter-Saakian, Grigorii"]
[Black "Kryakvin, Dmitry"]
[Result "0-1"]
[ECO "B20"]
[WhiteElo "2296"]
[BlackElo "2577"]
[Annotator "ChessBase"]
[PlyCount "172"]
[EventDate "2020.11.19"]
[EventType "team-tourn"]
[EventCountry "RUS"]
[SourceTitle "playchess.com"]
[Source "ChessBase"]
[SourceQuality "1"]
[TimeControl "40/5400+30:1800+30"]

1. e4 {[%emt 0:00:00]} c5 {[%emt 0:00:01]} 2. e5 {[%emt 0:04:22]} Nc6 {[%emt 0:03:56]} 3. f4 {[%emt 0:00:15]} d6 {[%emt 0:03:31]} 4. Nf3 {[%emt 0:01:14]} g6 5. Bb5 {[%emt 0:00:19]} Bd7 {[%emt 0:10:42]} 6. Nc3 {[%emt 0:01:12]} dxe5 {[%emt 0:05:04]} 7. fxe5 {[%emt 0:00:23]} Bg7 {[%emt 0:00:27]} 8. Qe2 {[%emt 0:00:53]} Nd4 {[%emt 0:08:13]} 9. Nxd4 {[%emt 0:01:02]} cxd4 {[%emt 0:00:06]} 10. e6 {[%emt 0:00:25]} fxe6 {[%emt 0:00:31]} 11. Ne4 {[%emt 0:00:51]} Bxb5 {[%emt 0:12:13]} 12. Qxb5+ {[%emt 0:00:06]} Qd7 {[%emt 0:00:05]} 13. Qxd7+ {[%emt 0:00:38]} Kxd7 {[%emt 0:00:09]} 14. Nc5+ {[%emt 0:01:19]} Kc6 {[%emt 0:08:32]} 15. Nxe6 {[%emt 0:00:25]} Be5 {[%emt 0:00:12]} 16. Ng5 {[%emt 0:01:16]} Rf8 {[%emt 0:04:05]} 17. Ke2 {[%emt 0:01:59]} Kd5 {[%emt 0:05:20]} 18. d3 {[%emt 0:01:07]} Nh6 {[%emt 0:04:04]} 19. Ne4 {[%emt 0:03:19]} Ng4 {[%emt 0:02:01]} 20. h3 {[%emt 0:06:47]} Nf6 {[%emt 0:00:53]} 21. c4+ {[%emt 0:07:18]} dxc3 {[%emt 0:02:39]} 22. Nxc3+ {[%emt 0:00:01]} Ke6 {[%emt 0:00:32]} 23. Be3 {[%emt 0:01:15]} Nh5 {[%emt 0:03:53]} 24. Ne4 {[%emt 0:02:10]} Nf4+ {[%emt 0:01:26]} 25. Bxf4 {[%emt 0:00:17]} Rxf4 {[%emt 0:00:30]} 26. Raf1 {[%emt 0:03:24]} Rxf1 {[%emt 0:03:34]} 27. Rxf1 {[%emt 0:00:16]} Rc8 {[%emt 0:00:24]} 28. Kd2 {[%emt 0:01:33]} Bxb2 {[%emt 0:03:40]} 29. Rb1 {[%emt 0:03:46]} Bg7 {[%emt 0:00:26]} 30. Rxb7 {[%emt 0:10:04]} Bh6+ {[%emt 0:00:12]} 31. Ke2 {[%emt 0:00:06]} Rc2+ {[%emt 0:00:10]} 32. Kf3 {[%emt 0:00:06]} Rxa2 {[%emt 0:00:16]} 33. Nc5+ {[%emt 0:02:16]} Kf7 {[%emt 0:01:31]} 34. d4 {[%emt 0:01:35]} Ra3+ {[%emt 0:08:02]} 35. Ke4 {[%emt 0:00:35]} Re3+ {[%emt 0:05:01]} 36. Kd5 {[%emt 0:00:13]} a5 {[%emt 0:00:05]} 37. Ra7 {[%emt 0:00:50]} Re2 {[%emt 0:00:46]} 38. Rxa5 {[%emt 0:01:29]} Rxg2 {[%emt 0:00:34]} 39. Ra3 {[%emt 0:00:42]} Rg5+ {[%emt 0:03:20]} 40. Ke4 {[%emt 0:00:00]} Bg7 {[%emt 0:00:00]} 41. Rf3+ {[%emt 0:01:17]} Bf6 {[%emt 0:02:34]} 42. Nd7 {[%emt 0:00:26]} Rh5 {[%emt 0:03:10]} 43. Nxf6 {[%emt 0:16:40]} exf6 {[%emt 0:00:11]} 44. Ra3 {[%emt 0:00:05]} Rh4+ {[%emt 0:04:50]} 45. Kd5 {[%emt 0:00:08]} g5 {[%emt 0:00:04]} 46. Kc5 {[%emt 0:00:29]} h5 {[%emt 0:00:24]} 47. d5 {[%emt 0:00:23]} g4 {[%emt 0:00:41]} 48. hxg4 {[%emt 0:00:04]} hxg4 {[%emt 0:00:19]} 49. Ra4 {[%emt 0:00:08]} f5 {[%emt 0:03:46]} 50. d6 {[%emt 0:02:22]} Ke6 {[%emt 0:08:52]} 51. Ra7 {[%emt 0:04:19]} Rh1 {[%emt 0:03:19]} 52. Re7+ {[%emt 0:01:13]} Kf6 {[%emt 0:00:04]} 53. Re8 {[%emt 0:00:07]} Rd1 {[%emt 0:00:11]} 54. Kc6 {[%emt 0:01:20]} g3 {[%emt 0:00:43]} 55. Rg8 {[%emt 0:00:09]} f4 {[%emt 0:04:18]} 56. d7 {[%emt 0:00:11]} Kf5 {[%emt 0:01:12]} 57. Kc7 {[%emt 0:01:04]} Ke4 {[%emt 0:00:51]} 58. d8=Q {[%emt 0:00:09]} Rxd8 {[%emt 0:00:08]} 59. Kxd8 {[%emt 0:00:03]} Kf3 {[%emt 0:00:13]} 60. Ke7 {[%emt 0:00:11]} Kg2 {[%emt 0:00:25]} 61. Kf6 {[%emt 0:01:20]} f3 {[%emt 0:00:06]} 62. Kg5 {[%emt 0:00:01]} f2 {[%emt 0:00:06]} 63. Kh4 {[%emt 0:00:01]} f1=Q {[%emt 0:00:12]} 64. Rxg3+ {[%emt 0:00:31]} Kh2 {[%emt 0:00:40]} 65. Rg5 {[%emt 0:00:38]} Qf4+ {[%emt 0:00:14]} 66. Kh5 {[%emt 0:00:04]} Kh3 {[%emt 0:00:06]} 67. Kg6 {[%emt 0:00:03]} Kh4 {[%emt 0:00:29]} 68. Rf5 {[%emt 0:00:05]} Qe4 {[%emt 0:00:11]} 69. Kf6 {[%emt 0:00:04]} Kg4 {[%emt 0:00:08]} 70. Re5 {[%emt 0:00:03]} Qd4 {[%emt 0:00:10]} 71. Ke6 {[%emt 0:00:02]} Kf4 {[%emt 0:00:22]} 72. Rd5 {[%emt 0:00:16]} Qc4 {[%emt 0:00:41]} 73. Kd6 {[%emt 0:00:06]} Ke4 {[%emt 0:00:06]} 74. Rc5 {[%emt 0:00:03]} Qa6+ {[%emt 0:00:17]} 75. Rc6 {[%emt 0:00:07]} Qb5 {[%emt 0:00:36]} 76. Rc5 {[%emt 0:00:21]} Qb6+ {[%emt 0:00:08]} 77. Rc6 {[%emt 0:00:06]} Qd8+ {[%emt 0:00:05]} 78. Kc5 {[%emt 0:00:05]} Qd4+ {[%emt 0:00:20]} 79. Kb5 {[%emt 0:00:03]} Kd5 {[%emt 0:00:04]} 80. Rc7 {[%emt 0:00:36]} Qb2+ {[%emt 0:01:34]} 81. Ka5 {[%emt 0:00:08]} Kd6 {[%emt 0:04:17]} 82. Rc4 {[%emt 0:00:13]} Qb3 {[%emt 0:02:01]} 83. Rb4 {[%emt 0:00:16]} Qa3+ {[%emt 0:00:26]} 84. Kb5 {[%emt 0:00:25]} Kd5 {[%emt 0:00:06]} 85. Ra4 {[%emt 0:00:08]} Qc5+ {[%emt 0:00:13]} 86. Ka6 {[%emt 0:00:05]} Kc6 {[%emt 0:00:14]} 0-1

[Event "XXVII RUS-chT Premier 2020"]
[Site "Sochi"]
[Date "2020.11.21"]
[Round "3.12"]
[White "Kryakvin, Dmitry"]
[Black "Savitskiy, Sergey"]
[Result "1-0"]
[ECO "A25"]
[WhiteElo "2577"]
[BlackElo "2451"]
[Annotator "ChessBase"]
[PlyCount "63"]
[EventDate "2020.11.19"]
[EventType "team-tourn"]
[EventCountry "RUS"]
[SourceTitle "playchess.com"]
[Source "ChessBase"]
[SourceQuality "1"]
[TimeControl "40/5400+30:1800+30"]

1. g3 {[%emt 0:00:00]} e5 {[%emt 0:03:48]} 2. c4 {[%emt 0:00:14]} Nc6 {[%emt 0:00:40]} 3. Bg2 {[%emt 0:00:35]} g6 {[%emt 0:02:49]} 4. Nc3 {[%emt 0:00:15]} Bg7 {[%emt 0:00:07]} 5. Rb1 {[%emt 0:00:45]} Nd4 {[%emt 0:13:25]} 6. e3 {[%emt 0:02:35]} Ne6 {[%emt 0:00:05]} 7. Nge2 {[%emt 0:03:12]} d6 {[%emt 0:07:38]} 8. d4 {[%emt 0:07:31]} a5 {[%emt 0:00:57]} 9. dxe5 {[%emt 0:04:45]} dxe5 {[%emt 0:01:06]} 10. Qxd8+ {[%emt 0:00:23]} Kxd8 {[%emt 0:01:18]} 11. O-O {[%emt 0:07:37]} c6 {[%emt 0:01:26]} 12. f4 {[%emt 0:10:33]} exf4 {[%emt 0:19:46]} 13. exf4 {[%emt 0:04:44]} Nh6 {[%emt 0:01:22]} 14. Be3 {[%emt 0:09:32]} Kc7 {[%emt 0:03:11]} 15. Na4 {[%emt 0:04:33]} Ra6 {[%emt 0:01:55]} 16. Bh3 {[%emt 0:01:41]} Re8 {[%emt 0:15:09]} 17. f5 {[%emt 0:05:18]} gxf5 {[%emt 0:03:02]} 18. Bxf5 {[%emt 0:01:44]} b5 {[%emt 0:04:56]} 19. cxb5 {[%emt 0:04:36]} cxb5 {[%emt 0:00:09]} 20. Nac3 {[%emt 0:05:25]} Nxf5 {[%emt 0:01:55]} 21. Rxf5 {[%emt 0:01:30]} b4 {[%emt 0:01:23]} 22. Rxf7+ {[%emt 0:02:09]} Kb8 {[%emt 0:03:00]} 23. Nb5 {[%emt 0:03:11]} Rc6 {[%emt 0:08:09]} 24. Nf4 {[%emt 0:05:59]} Be5 {[%emt 0:03:50]} 25. Nd5 {[%emt 0:03:43]} Ba6 {[%emt 0:00:49]} 26. a4 {[%emt 0:00:31]} Nd8 {[%emt 0:00:34]} 27. Rxh7 {[%emt 0:01:19]} Bb7 {[%emt 0:00:28]} 28. Ba7+ {[%emt 0:01:55]} Ka8 {[%emt 0:00:07]} 29. Nb6+ {[%emt 0:00:42]} Rxb6 {[%emt 0:00:06]} 30. Bxb6 {[%emt 0:00:04]} Ne6 {[%emt 0:00:58]} 31. Rh5 {[%emt 0:01:09]} Ng7 {[%emt 0:00:45]} 32. Rg5 {[%emt 0:00:21]} 1-0

[Event "XXVII RUS-chT Premier 2020"]
[Site "Sochi"]
[Date "2020.11.21"]
[Round "3.23"]
[White "Potkin, Vladimir"]
[Black "Samusenko, Maksim"]
[Result "1-0"]
[ECO "C41"]
[WhiteElo "2583"]
[BlackElo "2466"]
[Annotator "ChessBase"]
[PlyCount "81"]
[EventDate "2020.11.19"]
[EventType "team-tourn"]
[EventCountry "RUS"]
[SourceTitle "playchess.com"]
[Source "ChessBase"]
[SourceQuality "1"]
[TimeControl "40/5400+30:1800+30"]

1. e4 {[%emt 0:00:00]} d6 {[%emt 0:00:00]} 2. d4 {[%emt 0:00:00]} Nf6 {[%emt 0:00:07]} 3. Nc3 {[%emt 0:00:00]} e5 {[%emt 0:00:25]} 4. Nf3 {[%emt 0:00:02]} Nbd7 {[%emt 0:00:11]} 5. Bc4 {[%emt 0:00:21]} Be7 {[%emt 0:00:32]} 6. a4 {[%emt 0:00:40]} O-O {[%emt 0:00:36]} 7. O-O {[%emt 0:00:06]} c6 {[%emt 0:00:54]} 8. Re1 {[%emt 0:00:22]} h6 {[%emt 0:04:42]} 9. h3 {[%emt 0:02:31]} Qc7 {[%emt 0:01:13]} 10. Be3 {[%emt 0:01:18]} Re8 {[%emt 0:01:35]} 11. a5 {[%emt 0:08:09]} Nf8 {[%emt 0:04:04]} 12. d5 {[%emt 0:05:04]} Ng6 {[%emt 0:12:05]} 13. Nd2 {[%emt 0:14:50]} Nh7 {[%emt 0:09:21]} 14. Bf1 {[%emt 0:01:36]} Bg5 {[%emt 0:05:58]} 15. Nc4 {[%emt 0:01:29]} Rd8 {[%emt 0:02:16]} 16. b4 {[%emt 0:01:53]} Nf6 {[%emt 0:04:11]} 17. Bxg5 {[%emt 0:07:47]} hxg5 {[%emt 0:00:07]} 18. Ne3 {[%emt 0:00:16]} Ne7 {[%emt 0:09:32]} 19. Ra3 {[%emt 0:03:53]} Bd7 {[%emt 0:09:31]} 20. Qd2 {[%emt 0:03:29]} Rac8 {[%emt 0:08:42]} 21. a6 {[%emt 0:06:58]} bxa6 {[%emt 0:06:40]} 22. Bxa6 {[%emt 0:10:02]} Rb8 {[%emt 0:00:20]} 23. dxc6 {[%emt 0:00:55]} Bxc6 {[%emt 0:01:15]} 24. Ned5 {[%emt 0:00:55]} Nexd5 {[%emt 0:07:24]} 25. Nxd5 {[%emt 0:01:47]} Nxd5 {[%emt 0:01:34]} 26. exd5 {[%emt 0:00:02]} Bb5 {[%emt 0:00:31]} 27. Rea1 {[%emt 0:01:32]} Qc4 {[%emt 0:02:06]} 28. Bxb5 {[%emt 0:04:40]} Rxb5 {[%emt 0:00:12]} 29. Qxg5 {[%emt 0:00:41]} Rdb8 {[%emt 0:03:15]} 30. Rg3 {[%emt 0:05:07]} g6 {[%emt 0:00:05]} 31. Rxa7 {[%emt 0:02:10]} Qf4 {[%emt 0:03:17]} 32. Qe7 {[%emt 0:05:52]} Qc1+ {[%emt 0:01:55]} 33. Kh2 {[%emt 0:00:07]} Qf4 {[%emt 0:00:06]} 34. Qxd6 {[%emt 0:05:13]} Rxb4 {[%emt 0:00:06]} 35. Re7 {[%emt 0:01:01]} Rc8 {[%emt 0:01:15]} 36. Rxf7 {[%emt 0:01:16]} Qxf7 {[%emt 0:00:53]} 37. Qxb4 {[%emt 0:00:32]} Rxc2 {[%emt 0:00:37]} 38. Qe4 {[%emt 0:00:26]} Rxf2 {[%emt 0:00:23]} 39. Rxg6+ {[%emt 0:00:24]} Kf8 {[%emt 0:00:25]} 40. Qb4+ {[%emt 0:00:00]} Ke8 {[%emt 0:00:00]} 41. Re6+ {[%emt 0:00:23]} 1-0

[Event "XXVII RUS-chT Premier 2020"]
[Site "Sochi"]
[Date "2020.11.21"]
[Round "3.24"]
[White "Faizrakhmanov, Ramil"]
[Black "Yagupov, Igor"]
[Result "1-0"]
[ECO "D45"]
[WhiteElo "2450"]
[BlackElo "2357"]
[Annotator "ChessBase"]
[PlyCount "101"]
[EventDate "2020.11.19"]
[EventType "team-tourn"]
[EventCountry "RUS"]
[SourceTitle "playchess.com"]
[Source "ChessBase"]
[SourceQuality "1"]
[TimeControl "40/5400+30:1800+30"]

1. d4 {[%emt 0:00:00]} d5 {[%emt 0:00:00]} 2. c4 {[%emt 0:00:00]} e6 {[%emt 0:00:00]} 3. Nf3 {[%emt 0:00:25]} Nf6 {[%emt 0:00:00]} 4. Nc3 {[%emt 0:00:38]} c6 {[%emt 0:00:15]} 5. e3 {[%emt 0:01:48]} Nbd7 {[%emt 0:02:52]} 6. Qc2 {[%emt 0:00:22]} Bd6 {[%emt 0:00:14]} 7. b3 {[%emt 0:00:23]} O-O {[%emt 0:00:24]} 8. Be2 {[%emt 0:00:21]} b6 {[%emt 0:00:12]} 9. O-O {[%emt 0:00:23]} Bb7 {[%emt 0:00:08]} 10. Bb2 {[%emt 0:00:16]} Qe7 {[%emt 0:00:11]} 11. Rad1 {[%emt 0:00:52]} Rad8 {[%emt 0:00:09]} 12. Rfe1 {[%emt 0:00:52]} Rfe8 {[%emt 0:00:46]} 13. g3 {[%emt 0:00:47]} c5 {[%emt 0:04:00]} 14. cxd5 {[%emt 0:02:23]} exd5 {[%emt 0:08:45]} 15. Bf1 {[%emt 0:02:36]} a6 16. Bg2 {[%emt 0:01:21]} Qf8 {[%emt 0:17:40]} 17. dxc5 {[%emt 0:07:01]} Nxc5 {[%emt 0:18:50]} 18. Na4 {[%emt 0:04:44]} Nxa4 {[%emt 0:02:55]} 19. Bxf6 {[%emt 0:02:00]} Rc8 {[%emt 0:00:19]} 20. Qb1 {[%emt 0:00:22]} Nc5 {[%emt 0:05:36]} 21. Bb2 {[%emt 0:02:48]} Ne4 {[%emt 0:03:31]} 22. Rc1 {[%emt 0:01:43]} Bb4 {[%emt 0:08:09]} 23. Red1 {[%emt 0:03:14]} Bc3 {[%emt 0:00:22]} 24. Nd4 {[%emt 0:01:46]} Bxb2 {[%emt 0:02:03]} 25. Qxb2 {[%emt 0:01:51]} Rxc1 {[%emt 0:00:00]} 26. Rxc1 {[%emt 0:01:14]} Rc8 27. a3 Rxc1+ {[%emt 0:04:38]} 28. Qxc1 {[%emt 0:16:38]} Qc5 29. Qb2 Qc3 {[%emt 0:10:35]} 30. Qxc3 {[%emt 0:02:07]} Nxc3 {[%emt 0:00:02]} 31. Kf1 {[%emt 0:01:16]} Kf8 {[%emt 0:03:27]} 32. Ke1 {[%emt 0:01:09]} g6 {[%emt 0:03:04]} 33. f3 {[%emt 0:09:45]} Ke7 {[%emt 0:00:29]} 34. Bf1 {[%emt 0:01:42]} Kd6 {[%emt 0:03:13]} 35. Bd3 {[%emt 0:00:58]} Bc6 {[%emt 0:02:57]} 36. Bxa6 {[%emt 0:03:21]} b5 {[%emt 0:00:14]} 37. Bc8 {[%emt 0:00:40]} Nb1 {[%emt 0:01:13]} 38. Nc2 {[%emt 0:01:01]} f5 {[%emt 0:00:32]} 39. g4 {[%emt 0:00:59]} fxg4 {[%emt 0:00:15]} 40. Bxg4 {[%emt 0:00:00]} h5 {[%emt 0:00:00]} 41. Bh3 {[%emt 0:02:37]} g5 {[%emt 0:11:05]} 42. Bf5 {[%emt 0:00:35]} d4 {[%emt 0:00:16]} 43. Nxd4 {[%emt 0:00:35]} Nxa3 {[%emt 0:00:02]} 44. Nxc6 {[%emt 0:00:14]} Kxc6 {[%emt 0:00:02]} 45. Bd3 {[%emt 0:00:08]} Kc5 {[%emt 0:01:07]} 46. f4 {[%emt 0:00:42]} gxf4 {[%emt 0:04:28]} 47. exf4 {[%emt 0:00:05]} Kd4 {[%emt 0:00:08]} 48. Kd2 {[%emt 0:00:05]} h4 {[%emt 0:00:11]} 49. h3 {[%emt 0:00:06]} b4 {[%emt 0:01:07]} 50. f5 {[%emt 0:00:06]} Ke5 {[%emt 0:00:40]} 51. Ke3 {[%emt 0:00:01]} 1-0